bitfinex/quotes_SOLUSD_20250612
["timestamp","ask_amount","ask_price","bid_price","bid_amount"]
[1749749690714,25.18349602,159.86,159.85,26.02]
[1749749692332,0.14216157,159.85,159.83,10.0]
[1749749692507,18.92802249,159.85,159.83,10.0]
[1749749692706,18.92802249,159.85,159.84,26.02]
[1749749693806,0.14216157,159.85,159.84,26.02]
[1749749694507,0.14216157,159.85,159.83,10.0]
[1749749694508,6.39802644,159.85,159.83,10.0]
[1749749694808,6.39802644,159.85,159.84,26.02]
[1749749695530,6.39802644,159.85,159.83,10.0]
[1749749695730,6.39802644,159.85,159.84,26.02]
[1749749696029,25.18388736,159.85,159.84,26.02]
[1749749696330,27.52933324,159.85,159.84,26.02]
[1749749696532,27.52933353,159.85,159.84,26.02]
[1749749696823,8.74339578,159.85,159.84,26.02]
[1749749697402,2.34532197,159.85,159.84,26.02]
[1749749697607,2.34507206,159.85,159.84,54.80586092]
[1749749697823,6.25469101,159.88,159.86,10.0]
[1749749698052,6.25469101,159.88,159.87,36.02]
[1749749698207,8.59972065,159.88,159.87,36.02]
[1749749698411,8.59970498,159.88,159.87,36.02]
[1749749698939,8.5997016,159.88,159.87,36.02]
[1749749699104,2.34501059,159.88,159.87,36.02]
[1749749699748,2.34498699,159.88,159.87,54.80586092]
[1749749700041,6.25429983,159.89,159.88,10.0]
[1749749703918,6.3964614,159.89,159.86,10.0]
[1749749704225,21.26637276,159.88,159.87,26.0]
[1749749704423,21.26637272,159.88,159.87,36.0]
[1749749704618,21.26637264,159.88,159.87,26.0]
[1749749704817,0.14216157,159.87,159.85,10.0]
[1749749705025,21.26647903,159.87,159.86,36.0]
[1749749705226,27.52156096,159.87,159.86,36.16]
[1749749705638,25.18310474,159.87,159.86,10.16]
[1749749705812,27.52156096,159.87,159.86,36.16]
[1749749706627,27.52157332,159.87,159.86,36.16]
[1749749706836,25.18310474,159.87,159.86,36.16]
[1749749707022,25.18310474,159.87,159.86,26.16]
[1749749707239,27.52157332,159.87,159.86,26.16]
[1749749707437,25.18310474,159.87,159.86,26.16]
[1749749707745,27.52170362,159.87,159.86,26.0]
[1749749707940,25.18310474,159.87,159.86,36.0]
[1749749708528,27.52160931,159.87,159.86,36.0]
[1749749708729,27.52159686,159.87,159.86,36.0]
[1749749709034,27.52157668,159.87,159.86,36.0]
[1749749709420,27.52160022,159.87,159.86,36.0]
[1749749709820,27.52160022,159.87,159.84,10.0]
[1749749709821,69.15930585,159.87,159.84,10.0]
[1749749710137,0.14216157,159.84,159.83,10.0]
[1749749710340,0.28432314,159.86,159.83,36.0]
[1749749710544,2.48092594,159.86,159.83,36.0]
[1749749710743,2.4808108,159.86,159.84,10.0]
[1749749710933,0.14216157,159.86,159.85,26.0]
[1749749711138,2.33863201,159.86,159.85,36.0]
[1749749711340,6.39724382,159.87,159.86,10.0]
[1749749711536,8.7357393,159.87,159.86,10.0]
[1749749711845,6.39724382,159.87,159.86,10.0]
[1749749712028,27.52160022,159.87,159.86,10.0]
[1749749712232,25.18310474,159.87,159.86,10.0]
[1749749712433,27.52160022,159.87,159.86,10.0]
[1749749712643,25.18310474,159.87,159.85,36.0]
[1749749713045,18.78586092,159.86,159.85,26.0]
[1749749713253,21.12447274,159.86,159.85,26.0]
[1749749713640,18.78586092,159.86,159.85,26.0]
[1749749713943,27.37994627,159.86,159.85,26.0]
[1749749714143,27.37990689,159.86,159.85,26.0]
[1749749714543,27.37995631,159.86,159.85,26.0]
[1749749714944,27.37995631,159.86,159.83,10.0]
[1749749714945,0.14216157,159.85,159.83,10.0]
[1749749715149,18.92802249,159.85,159.84,36.0]
[1749749715445,18.92802249,159.85,159.84,10.0]
[1749749715646,18.92802249,159.85,159.84,36.0]
[1749749716148,21.89415737,159.86,159.84,10.0]
[1749749716354,21.89415737,159.86,159.84,36.0]
[1749749717035,40.68001829,159.86,159.84,36.0]
[1749749717540,26.0,159.88,159.85,28.78586092]
[1749749717755,4.67438786,159.9,159.87,10.0]
[1749749717935,4.67654719,159.89,159.88,36.0]
[1749749718135,26.0,159.89,159.88,36.0]
[1749749718453,26.0,159.89,159.86,88.5]
[1749749718454,26.42648471,159.87,159.86,88.5]
[1749749718762,47.55061822,159.87,159.86,124.5]
[1749749719057,51.46742788,159.87,159.86,114.5]
[1749749719241,58.48226734,159.87,159.86,124.5]
[1749749719445,8.59375199,159.87,159.86,54.78586092]
[1749749719650,6.25508225,159.87,159.86,54.78586092]
[1749749720456,8.60000245,159.87,159.86,54.78586092]
[1749749720756,6.25508225,159.87,159.86,54.78586092]
[1749749721454,8.5999939,159.87,159.86,36.0]
[1749749721644,2.34491165,159.87,159.86,54.78586092]
[1749749721956,2.34492961,159.87,159.86,54.78586092]
[1749749722169,6.25481572,159.88,159.87,10.0]
[1749749722330,8.59596863,159.88,159.87,10.0]
[1749749722529,6.25481572,159.88,159.87,10.0]
[1749749722741,8.59595419,159.88,159.87,10.0]
[1749749722942,5.25168722,159.88,159.87,10.0]
[1749749723142,7.59282561,159.88,159.87,10.0]
[1749749723344,5.25168722,159.88,159.87,10.0]
[1749749724342,7.59283127,159.88,159.87,10.0]
[1749749724561,5.25168722,159.88,159.87,10.0]
[1749749724783,5.25168722,159.88,159.87,117.28586092]
[1749749725061,5.25168722,159.88,159.87,98.5]
[1749749725655,7.59281334,159.88,159.87,98.5]
[1749749725847,5.25168722,159.88,159.87,98.5]
[1749749726045,5.25168722,159.88,159.87,10.0]
[1749749727158,7.59282231,159.88,159.87,10.0]
[1749749727467,5.25168722,159.88,159.87,10.0]
[1749749727763,26.52086566,159.88,159.87,26.0]
[1749749727942,26.52097452,159.88,159.87,26.0]
[1749749728142,24.17970971,159.88,159.87,26.0]
[1749749728556,0.14216157,159.87,159.85,10.0]
[1749749728768,21.12737601,159.86,159.84,10.0]
[1749749728968,18.92802249,159.86,159.85,36.0]
[1749749729261,27.52501288,159.86,159.85,36.0]
[1749749729454,0.14216157,159.85,159.84,10.0]
[1749749729773,21.26964016,159.85,159.84,10.0]
[1749749729949,21.26981671,159.85,159.81,10.0]
[1749749730263,21.26977586,159.84,159.83,10.0]
[1749749730466,21.26977461,159.84,159.83,26.0]
[1749749730647,21.26979643,159.84,159.83,26.0]
[1749749730847,21.2697901,159.84,159.83,26.0]
[1749749731168,13.42371666,159.84,159.83,36.0]
[1749749731362,13.42368719,159.84,159.83,26.0]
[1749749731547,32.20966647,159.84,159.83,26.0]
[1749749731746,32.20985902,159.84,159.83,26.0]
[1749749731942,25.18427874,159.84,159.83,36.0]
[1749749732147,29.86796942,159.84,159.83,36.0]
[1749749732343,29.86796877,159.84,159.83,36.0]
[1749749732568,27.52605246,159.84,159.83,36.0]
[1749749732876,32.20958122,159.84,159.83,36.0]
[1749749733082,27.52604622,159.84,159.83,36.0]
[1749749733243,25.18427874,159.84,159.83,26.0]
[1749749733446,32.20968273,159.84,159.83,26.0]
[1749749733670,27.52611854,159.84,159.83,26.0]
[1749749733972,29.86802695,159.84,159.83,36.0]
[1749749734173,32.2099009,159.84,159.83,10.0]
[1749749734476,32.20982449,159.84,159.83,36.0]
[1749749734643,32.2097767,159.84,159.83,36.0]
[1749749734975,32.20976655,159.84,159.83,36.0]
[1749749735348,11.08203571,159.84,159.83,36.0]
[1749749735675,6.39841782,159.84,159.83,36.0]
[1749749735876,8.74019628,159.84,159.83,36.0]
[1749749736045,8.74019628,159.84,159.79,10.0]
[1749749736046,26.0,159.81,159.79,10.0]
[1749749736245,23.47029525,159.8,159.77,10.0]
[1749749736481,23.47052457,159.79,159.77,10.0]
[1749749736784,23.47083197,159.78,159.75,10.0]
[1749749737070,44.92802249,159.76,159.74,10.0]
[1749749737246,26.14216157,159.76,159.75,36.0]
[1749749737444,58.21624071,159.76,159.75,36.0]
[1749749737674,34.60237179,159.76,159.75,36.0]
[1749749737981,39.28771992,159.76,159.75,36.0]
[1749749738278,36.94510512,159.76,159.75,36.0]
[1749749738577,26.0,159.78,159.76,10.0]
[1749749738755,26.0,159.78,159.77,10.0]
[1749749738958,33.02792583,159.78,159.77,36.0]
[1749749739158,33.02791959,159.78,159.77,36.0]
[1749749739367,58.4988678,159.78,159.77,26.0]
[1749749739664,0.14216157,159.77,159.76,10.0]
[1749749739864,7.17034519,159.77,159.76,36.0]
[1749749740072,21.27075181,159.77,159.76,36.0]
[1749749740373,4.8276202,159.77,159.76,36.0]
[1749749740680,7.17066252,159.77,159.76,36.0]
[1749749740872,7.17061524,159.77,159.76,36.0]
[1749749741074,13.42961254,159.77,159.76,36.0]
[1749749741451,8.74397676,159.77,159.76,36.0]
[1749749741651,7.02845367,159.77,159.76,54.78586092]
[1749749741877,6.25811682,159.8,159.79,10.0]
[1749749742056,13.28592394,159.8,159.79,36.0]
[1749749742257,13.28592395,159.8,159.79,36.0]
[1749749742563,6.25753326,159.81,159.8,10.0]
[1749749742755,8.6000941,159.81,159.8,10.0]
[1749749742959,13.2850489,159.81,159.8,10.0]
[1749749743168,13.28510694,159.81,159.8,10.0]
[1749749743365,6.2571818,159.82,159.8,28.78586092]
[1749749743577,6.2571818,159.82,159.81,26.0]
[1749749743760,39.283843,159.82,159.81,36.0]
[1749749743946,32.2571818,159.82,159.81,36.0]
[1749749744152,10.94163518,159.82,159.81,36.0]
[1749749744377,6.2571818,159.82,159.81,36.0]
[1749749744552,32.2571818,159.82,159.81,36.0]
[1749749746987,32.2571818,159.82,159.81,54.78586092]
[1749749747475,32.2571818,159.82,159.81,36.0]
[1749749747681,32.2571818,159.82,159.81,54.78586092]
[1749749749066,32.2571818,159.82,159.81,36.0]
[1749749752573,32.2571818,159.82,159.81,26.0]
[1749749752777,32.2571818,159.82,159.8,10.0]
[1749749752778,51.46952743,159.82,159.79,10.0]
[1749749753087,0.14216157,159.81,159.8,36.0]
[1749749753286,0.14216157,159.81,159.8,10.0]
[1749749753486,0.14216157,159.81,159.8,36.0]
[1749749753689,6.39959226,159.81,159.8,36.0]
[1749749756270,6.39959226,159.81,159.8,26.0]
[1749749757078,25.18545318,159.81,159.8,26.0]
[1749749758195,25.18545318,159.81,159.79,10.0]
[1749749758401,25.18545318,159.81,159.8,26.0]
[1749749758608,25.18545318,159.81,159.77,88.5]
[1749749758609,26.0,159.79,159.77,98.5]
[1749749758807,26.0,159.79,159.78,36.0]
[1749749759181,32.40037547,159.79,159.78,36.0]
[1749749763514,32.2582139,159.79,159.78,36.0]
[1749749763816,32.2582139,159.79,159.78,10.0]
[1749749764019,32.2582139,159.79,159.78,36.0]
[1749749764503,6.2582139,159.79,159.78,54.78586092]
[1749749764705,6.2582139,159.79,159.78,36.0]
[1749749765412,6.25782227,159.8,159.78,36.0]
[1749749766412,6.25782227,159.8,159.79,10.0]
[1749749767205,8.5948416,159.8,159.79,10.0]
[1749749767603,8.59486865,159.8,159.78,26.0]
[1749749767811,27.52289146,159.8,159.79,10.0]
[1749749768018,27.52289114,159.8,159.79,10.0]
[1749749768309,8.73703022,159.8,159.78,36.0]
[1749749768614,27.52289146,159.8,159.78,26.0]
[1749749768823,25.18584476,159.8,159.79,10.0]
[1749749769310,27.52289114,159.8,159.79,36.0]
[1749749769493,27.52289114,159.8,159.79,26.0]
[1749749769699,27.52289114,159.8,159.79,36.0]
[1749749770011,27.80721428,159.8,159.79,26.0]
[1749749770389,25.4701679,159.8,159.79,26.0]
[1749749770586,43.45186766,159.8,159.77,10.0]
[1749749770791,26.0,159.78,159.77,10.0]
[1749749771089,47.90237796,159.8,159.78,10.0]
[1749749771288,66.83040045,159.8,159.79,26.0]
[1749749771484,69.16743243,159.8,159.79,26.0]
[1749749771689,66.83040045,159.8,159.79,26.0]
[1749749771905,69.16747643,159.8,159.79,26.0]
[1749749772118,69.16750109,159.8,159.79,26.0]
[1749749772314,66.83040045,159.8,159.79,26.0]
[1749749772504,69.16753809,159.8,159.79,26.0]
[1749749772688,69.16750107,159.8,159.79,26.0]
[1749749772888,0.14216157,159.79,159.77,10.0]
[1749749773093,2.47941106,159.79,159.78,26.0]
[1749749773419,21.26527166,159.79,159.78,26.0]
[1749749774104,27.52343621,159.79,159.78,36.0]
[1749749774426,27.5233598,159.79,159.78,26.0]
[1749749774717,25.18623639,159.79,159.78,26.0]
[1749749775194,27.5233598,159.79,159.78,26.0]
[1749749775802,27.5233598,159.79,159.77,10.0]
[1749749775994,25.18623639,159.79,159.78,25.98]
[1749749776201,27.52336012,159.79,159.78,25.98]
[1749749776396,43.31105645,159.79,159.77,10.0]
[1749749776713,18.92802249,159.78,159.77,10.0]
[1749749776904,0.14216157,159.78,159.77,35.98]
[1749749777825,40.83177115,159.79,159.77,35.98]
[1749749777826,40.68960958,159.79,159.77,35.98]
[1749749778122,18.92802249,159.78,159.77,25.98]
[1749749778420,25.47095121,159.78,159.77,25.98]
[1749749778716,26.14216157,159.77,159.76,10.0]
[1749749779018,26.14216157,159.77,159.76,25.98]
[1749749779220,26.14216157,159.77,159.76,35.98]
[1749749779600,26.14216157,159.77,159.76,25.98]
[1749749779801,51.18701979,159.77,159.76,25.98]
[1749749780002,32.40115887,159.77,159.76,35.98]
[1749749780199,6.2589973,159.77,159.76,54.76586092]
[1749749781910,6.2582139,159.79,159.76,54.76586092]
[1749749782097,6.2582139,159.79,159.78,10.0]
[1749749782298,6.2582139,159.79,159.78,35.98]
[1749749787505,32.25703916,159.82,159.8,10.0]
[1749749787734,32.25703916,159.82,159.81,35.98]
[1749749788025,34.59604662,159.82,159.81,35.98]
[1749749788531,34.59604077,159.82,159.81,35.98]
[1749749788743,32.25703916,159.82,159.81,35.98]
[1749749788944,32.25703916,159.82,159.81,54.76586092]
[1749749789236,6.25703916,159.82,159.81,54.76586092]
[1749749789613,8.60099434,159.82,159.81,54.76586092]
[1749749790104,6.25703916,159.82,159.81,54.76586092]
[1749749790311,8.60099434,159.82,159.81,54.76586092]
[1749749790826,2.34395518,159.82,159.81,54.76586092]
[1749749791032,6.25664768,159.83,159.81,54.76586092]
[1749749791235,2.34395485,159.82,159.81,54.76586092]
[1749749791418,2.34395518,159.82,159.81,54.76586092]
[1749749791829,6.25664768,159.83,159.81,54.76586092]
[1749749792030,2.34395485,159.82,159.81,54.76586092]
[1749749792356,2.34388098,159.82,159.81,54.76586092]
[1749749792533,2.34388096,159.82,159.81,54.76586092]
[1749749792832,6.25664768,159.83,159.81,54.76586092]
[1749749794017,6.25664768,159.83,159.81,35.98]
[1749749794224,6.25703916,159.82,159.81,54.76586092]
[1749749794528,8.60080821,159.82,159.81,54.76586092]
[1749749794729,6.25703916,159.82,159.81,54.76586092]
[1749749795120,6.25664768,159.83,159.81,54.76586092]
[1749749795428,2.34376873,159.82,159.81,54.76586092]
[1749749795630,2.34376905,159.82,159.81,54.76586092]
[1749749796135,8.60080821,159.82,159.81,54.76586092]
[1749749796340,8.6008116,159.82,159.81,54.76586092]
[1749749796945,6.25586487,159.85,159.84,10.0]
[1749749797142,6.25586487,159.85,159.84,35.98]
[1749749797143,8.59927607,159.85,159.84,35.98]
[1749749797351,8.59927616,159.85,159.84,35.98]
[1749749797526,8.59941412,159.85,159.84,35.98]
[1749749797850,8.5993837,159.85,159.84,35.98]
[1749749798017,6.25586487,159.85,159.84,35.98]
[1749749798645,8.59952312,159.85,159.84,35.98]
[1749749799019,2.3434585,159.85,159.84,143.26586092]
[1749749799325,6.25523798,159.87,159.86,10.0]
[1749749799528,8.59864574,159.87,159.86,54.76586092]
[1749749800046,8.59833935,159.87,159.86,54.76586092]
[1749749800228,2.34307668,159.87,159.86,54.76586092]
[1749749800720,2.34302385,159.87,159.86,54.76586092]
[1749749801336,28.48545258,159.87,159.86,35.98]
[1749749801544,47.27142379,159.87,159.86,35.98]
[1749749801722,47.27142378,159.87,159.86,25.98]
[1749749801928,28.48556286,159.87,159.86,35.98]
[1749749802131,28.48556293,159.87,159.86,35.98]
[1749749802367,32.25508225,159.87,159.86,35.98]
[1749749802836,34.59840784,159.87,159.86,35.98]
[1749749803156,34.59835523,159.87,159.86,35.98]
[1749749803442,34.59833627,159.87,159.86,35.98]
[1749749803652,53.52637195,159.87,159.86,25.98]
[1749749803961,0.28432314,159.86,159.82,10.0]
[1749749804156,18.92802249,159.84,159.82,10.0]
[1749749804360,18.92802249,159.84,159.83,25.96]
[1749749804654,0.42648471,159.83,159.81,10.0]
[1749749804952,47.27198987,159.82,159.8,10.0]
[1749749805256,26.14216157,159.82,159.81,35.96]
[1749749805550,27.52907091,159.82,159.81,25.96]
[1749749805854,27.52911141,159.82,159.81,25.96]
[1749749806043,25.18506165,159.82,159.81,25.96]
[1749749806251,27.52908762,159.82,159.81,25.96]
[1749749806839,27.52912512,159.82,159.81,25.96]
[1749749807041,27.52908052,159.82,159.81,25.96]
[1749749807255,25.18506165,159.82,159.8,10.0]
[1749749807558,25.18506165,159.82,159.75,7.6144]
[1749749807559,6.25782227,159.8,159.78,10.0]
[1749749807751,25.18584476,159.8,159.79,35.96]
[1749749808136,27.53013689,159.8,159.79,35.96]
[1749749808340,69.17469358,159.8,159.77,10.0]
[1749749808542,21.13015471,159.79,159.78,25.96]
[1749749808761,21.13019261,159.79,159.78,35.96]
[1749749809057,21.13019599,159.79,159.78,35.96]
[1749749809243,66.83040045,159.8,159.78,35.96]
[1749749809841,2.34433537,159.79,159.78,35.96]
[1749749810157,2.34433569,159.79,159.78,35.96]
[1749749810346,8.60277975,159.79,159.78,35.96]
[1749749810541,6.2582139,159.79,159.78,35.96]
[1749749810749,8.60274262,159.79,159.78,35.96]
[1749749810948,6.2582139,159.79,159.78,35.96]
[1749749811262,8.60275557,159.79,159.78,35.96]
[1749749811442,6.2582139,159.79,159.78,35.96]
[1749749811961,6.2582139,159.79,159.78,25.96]
[1749749811962,8.60217262,159.79,159.78,25.96]
[1749749812152,8.60222212,159.79,159.78,35.96]
[1749749812460,27.53011582,159.79,159.78,25.96]
[1749749812756,27.53011582,159.79,159.76,10.0]
[1749749812757,43.17565058,159.79,159.76,10.0]
[1749749813056,2.34398373,159.78,159.76,10.0]
[1749749813247,40.83177115,159.79,159.77,25.96]
[1749749813448,2.34397619,159.78,159.77,25.96]
[1749749813758,6.2582139,159.79,159.77,54.74586092]
[1749749814067,2.34375639,159.79,159.78,28.78586092]
[1749749814573,2.34374839,159.79,159.78,28.78586092]
[1749749814771,2.34374839,159.81,159.78,10.0]
[1749749814940,2.34371063,159.8,159.79,25.96]
[1749749815141,2.34371063,159.8,159.79,35.96]
[1749749815941,66.68641154,159.82,159.79,35.96]
[1749749816264,66.68641154,159.82,159.8,10.0]
[1749749816454,2.3436779,159.81,159.8,10.0]
[1749749816645,2.34368129,159.81,159.8,35.96]
[1749749817062,2.34371338,159.81,159.8,35.96]
[1749749817671,2.34370999,159.81,159.8,35.96]
[1749749817876,66.68641154,159.82,159.8,35.96]
[1749749818055,2.34370999,159.81,159.8,35.96]
[1749749818256,21.12957091,159.81,159.8,35.96]
[1749749818452,2.34370999,159.81,159.8,35.96]
[1749749818647,21.12957091,159.81,159.8,35.96]
[1749749818855,18.78586092,159.81,159.8,35.96]
[1749749819054,18.92802249,159.81,159.8,25.96]
[1749749819274,21.27173248,159.81,159.79,10.0]
[1749749819472,18.92802249,159.81,159.8,25.96]
[1749749819772,21.27182247,159.81,159.8,35.96]
[1749749819974,8.60101412,159.81,159.8,35.96]
[1749749820171,8.60101414,159.81,159.8,35.96]
[1749749820375,6.25743069,159.81,159.8,35.96]
[1749749820555,8.60103157,159.81,159.8,35.96]
[1749749820870,8.60103164,159.81,159.8,35.96]
[1749749821075,8.60108062,159.81,159.8,35.96]
[1749749821274,6.25743069,159.81,159.8,35.96]
[1749749821473,8.60111114,159.81,159.8,35.96]
[1749749822065,8.60108643,159.81,159.8,35.96]
[1749749822359,0.28432314,159.85,159.8,54.74586092]
[1749749822562,8.59964124,159.84,159.83,10.0]
[1749749822773,8.59964004,159.84,159.83,35.96]
[1749749822965,8.59963976,159.84,159.83,35.96]
[1749749823865,6.25625625,159.84,159.83,35.96]
[1749749824082,8.59946509,159.84,159.83,35.96]
[1749749824458,6.25625625,159.84,159.83,35.96]
[1749749824677,8.59943386,159.84,159.83,35.96]
[1749749825077,8.5994215,159.84,159.83,35.96]
[1749749825553,8.59941908,159.84,159.83,35.96]
[1749749825950,8.59943145,159.84,159.83,35.96]
[1749749826276,6.25625625,159.84,159.83,25.96]
[1749749826579,8.59961594,159.84,159.83,25.96]
[1749749826767,8.59961594,159.84,159.83,35.96]
[1749749827080,8.59964067,159.84,159.83,25.96]
[1749749827381,27.52766316,159.84,159.82,10.0]
[1749749827574,25.18427874,159.84,159.83,35.96]
[1749749827778,8.7418541,159.84,159.83,35.96]
[1749749828003,6.39841782,159.84,159.83,10.0]
[1749749828152,8.7418541,159.84,159.83,25.96]
[1749749828477,8.74179974,159.84,159.83,25.96]
[1749749828676,8.74187958,159.84,159.83,35.96]
[1749749829074,8.7418795,159.84,159.83,35.96]
[1749749829392,8.74188071,159.84,159.83,35.96]
[1749749829681,8.74181828,159.84,159.83,35.96]
[1749749829907,6.39841782,159.84,159.83,35.96]
[1749749830088,8.74181828,159.84,159.83,35.96]
[1749749830266,6.39841782,159.84,159.83,10.0]
[1749749830457,8.7417344,159.84,159.83,35.96]
[1749749830782,6.39841782,159.84,159.83,35.96]
[1749749830977,8.74172423,159.84,159.83,35.96]
[1749749831278,8.74163982,159.84,159.83,35.96]
[1749749831481,8.74400693,159.84,159.83,35.96]
[1749749831786,8.74412531,159.84,159.83,35.96]
[1749749831958,6.39841782,159.84,159.83,35.96]
[1749749832469,8.74425207,159.84,159.83,35.96]
[1749749832875,8.74418557,159.84,159.83,35.96]
[1749749833090,6.39841782,159.84,159.83,35.96]
[1749749833383,8.7442351,159.84,159.83,35.96]
[1749749833579,6.39841782,159.84,159.83,35.96]
[1749749833794,8.74418557,159.84,159.83,35.96]
[1749749834288,8.74418799,159.84,159.83,35.96]
[1749749834681,6.39841782,159.84,159.83,25.96]
[1749749834871,8.74423752,159.84,159.83,25.96]
[1749749835063,8.74418557,159.84,159.83,25.96]
[1749749835684,6.39841782,159.84,159.83,25.96]
[1749749835880,8.74415325,159.84,159.83,35.96]
[1749749836081,6.39841782,159.84,159.83,35.96]
[1749749836260,11.08988085,159.84,159.83,35.96]
[1749749836460,11.0898809,159.84,159.83,35.96]
[1749749836661,11.08987979,159.84,159.83,35.96]
[1749749836890,11.08987938,159.84,159.83,35.96]
[1749749837587,11.08991948,159.84,159.83,35.96]
[1749749837786,8.74414931,159.84,159.83,35.96]
[1749749837989,11.08991948,159.84,159.83,25.96]
[1749749838167,11.08991948,159.84,159.83,35.96]
[1749749838365,8.74414931,159.84,159.83,35.96]
[1749749838591,11.08991706,159.84,159.83,35.96]
[1749749838975,11.08991706,159.84,159.83,25.96]
[1749749839166,11.08995659,159.84,159.83,35.96]
[1749749839368,11.08995659,159.84,159.83,10.0]
[1749749839567,11.08995659,159.84,159.83,35.94]
[1749749839777,8.74414931,159.84,159.83,35.94]
[1749749839998,11.08994421,159.84,159.83,25.94]
[1749749840295,8.74414931,159.84,159.83,35.94]
[1749749840795,11.08994421,159.84,159.83,25.94]
[1749749841006,30.16012827,159.84,159.83,25.94]
[1749749841298,0.42648471,159.83,159.81,10.0]
[1749749841606,19.21234563,159.83,159.82,25.94]
[1749749841890,21.55825188,159.83,159.81,10.0]
[1749749842095,19.21234563,159.83,159.82,25.94]
[1749749842390,21.54976753,159.83,159.82,25.94]
[1749749842695,21.54980454,159.83,159.82,25.94]
[1749749842896,27.80645222,159.83,159.82,25.94]
[1749749843075,27.80641322,159.83,159.8,10.0]
[1749749843275,41.11061253,159.83,159.81,25.94]
[1749749843483,0.14216157,159.81,159.79,10.0]
[1749749843689,18.78586092,159.8,159.78,88.5]
[1749749843868,0.14216157,159.82,159.79,25.94]
[1749749844068,2.76407629,159.82,159.8,10.0]
[1749749844405,2.7639787,159.82,159.81,25.94]
[1749749844576,21.54993713,159.82,159.81,25.94]
[1749749844981,32.48033619,159.82,159.81,25.94]
[1749749845180,32.48049393,159.82,159.81,25.94]
[1749749845382,32.48045691,159.82,159.81,25.94]
[1749749845788,32.4804603,159.82,159.81,25.94]
[1749749846091,32.48049732,159.82,159.81,25.94]
[1749749846965,48.12309524,159.82,159.81,25.94]
[1749749847170,48.12304588,159.82,159.81,25.94]
[1749749847375,45.78534261,159.82,159.81,25.94]
[1749749847592,48.12309524,159.82,159.81,25.94]
[1749749847977,45.78534261,159.82,159.81,25.94]
[1749749848174,48.12309186,159.82,159.79,10.0]
[1749749848398,22.32612179,159.82,159.81,25.94]
[1749749848583,43.44973534,159.82,159.81,25.94]
[1749749848781,48.12808212,159.82,159.81,25.94]
[1749749848981,48.12808212,159.82,159.77,10.0]
[1749749849204,0.14216157,159.8,159.78,25.94]
[1749749849374,2.47999484,159.8,159.78,25.94]
[1749749849904,0.14216157,159.8,159.79,10.0]
[1749749850075,2.47991912,159.8,159.78,25.94]
[1749749850278,2.4799158,159.8,159.78,25.94]
[1749749850483,2.4799158,159.8,159.77,10.0]
[1749749850694,2.47991612,159.8,159.78,25.94]
[1749749850875,6.2582139,159.79,159.78,10.0]
[1749749851079,6.2582139,159.79,159.78,35.94]
[1749749854297,24.38383073,159.79,159.78,10.0]
[1749749854507,22.04591023,159.79,159.78,10.0]
[1749749854799,22.04591023,159.79,159.78,35.94]
[1749749855272,24.39227414,159.79,159.78,35.94]
[1749749855477,22.04591023,159.79,159.78,35.94]
[1749749855877,22.04591023,159.79,159.78,25.94]
[1749749856101,43.17819786,159.79,159.78,25.94]
[1749749856403,43.1781607,159.79,159.78,25.94]
[1749749856587,43.1781607,159.79,159.77,10.0]
[1749749856588,6.40076715,159.78,159.77,10.0]
[1749749856792,8.74726105,159.78,159.77,35.94]
[1749749857600,8.6050601,159.78,159.77,35.94]
[1749749857783,8.60492384,159.78,159.77,54.72586092]
[1749749858203,8.60488668,159.78,159.77,54.72586092]
[1749749858384,8.60492384,159.78,159.77,54.72586092]
[1749749858793,6.2582139,159.79,159.78,10.0]
[1749749859184,8.60439172,159.79,159.78,10.0]